[Event "44th Chess Olympiad Open 2022"]
[Site "Chennai"]
[Date "2022.08.08"]
[Round "10.37"]
[White "Arunnuntapanich, Tinnakrit"]
[Black "Zia, Tahsin Tajwar"]
[Result "0-1"]
[WhiteElo "2117"]
[BlackElo "2307"]
[Annotator "RC"]
[PlyCount "104"]
[EventDate "2022.??.??"]
[TimeControl "60"]

1. d4 {[%emt 0:00:02]} Nf6 {[%emt 0:00:25]} 2. c4 {[%emt 0:00:11]} e6 {[%emt 0:
00:00]} 3. Nf3 {[%emt 0:00:15]} d5 {[%emt 0:00:07]} 4. Nc3 {[%emt 0:00:15]} c6
{[%emt 0:00:56]} 5. cxd5 {[%emt 0:04:11]} exd5 {[%emt 0:00:08]} 6. Bg5 {
[%emt 0:00:21]} h6 {[%emt 0:00:37]} 7. Bh4 {[%emt 0:00:08]} Be7 {[%emt 0:00:09]
} 8. Qc2 {[%emt 0:02:33]} O-O {[%emt 0:01:15]} 9. e3 {[%emt 0:00:07]} Re8 {
[%emt 0:02:17]} 10. Bd3 {[%emt 0:01:12]} Ne4 {[%emt 0:05:50]} 11. Bxe7 {
[%emt 0:05:36]} Qxe7 {[%emt 0:00:10]} 12. O-O {[%emt 0:01:40]} Nd7 {[%emt 0:00:
00]} 13. Rae1 {[%emt 0:01:33]} Ndf6 {[%emt 0:19:23]} 14. Ne5 {[%emt 0:06:20]}
Nxc3 {[%emt 0:09:39]} 15. bxc3 {[%emt 0:00:35]} c5 {[%emt 0:02:13]} 16. Qb2 {
[%emt 0:09:00]} c4 {[%emt 0:08:51]} 17. Bc2 {[%emt 0:04:46]} Qc7 {[%emt 0:00:
00]} 18. f3 {[%emt 0:11:10]} Rb8 {[%emt 0:00:48]} 19. a4 {[%emt 0:04:42]} a6 {
[%emt 0:03:37]} 20. Rb1 {[%emt 0:03:41]} Nd7 {[%emt 0:09:05]} 21. Nxd7 {
[%emt 0:03:47]} Bxd7 {[%emt 0:00:28]} 22. e4 {[%emt 0:00:54]} b5 {[%emt 0:00:
00]} 23. axb5 {[%emt 0:01:26]} axb5 {[%emt 0:00:46]} 24. e5 {[%emt 0:04:04]}
Re6 {[%emt 0:12:58]} 25. Qa3 {[%emt 0:10:19]} Qc8 {[%emt 0:02:18]} 26. Bf5 {
[%emt 0:14:59]} Ra6 {[%emt 0:05:11]} 27. Bxd7 {[%emt 0:00:00]} Rxa3 {[%emt 0:
00:00]} 28. Bxc8 {[%emt 0:00:00]} Rxc8 {[%emt 0:00:04]} 29. Rfc1 {[%emt 0:00:
00]} Rb8 {[%emt 0:04:53]} 30. Rb2 {[%emt 0:00:57]} Kf8 {[%emt 0:00:26]} 31. Kf2
{[%emt 0:02:45]} Ke7 {[%emt 0:00:13]} 32. Ke2 {[%emt 0:00:59]} h5 {[%emt 0:00:
00]} 33. Kd2 {[%emt 0:00:16]} Ke6 {[%emt 0:00:58]} 34. g3 {[%emt 0:01:49]} b4 {
[%emt 0:01:13]} 35. Rxb4 {[%emt 0:01:53]} Rxb4 {[%emt 0:00:05]} 36. cxb4 {
[%emt 0:00:04]} Rxf3 {[%emt 0:00:49]} 37. Rb1 {[%emt 0:00:07]} Rd3+ {[%emt 0:
00:00]} 38. Kc2 {[%emt 0:00:05]} Rxd4 {[%emt 0:01:40]} 39. b5 {[%emt 0:00:05]}
Kd7 {[%emt 0:00:04]} 40. Rf1 {[%emt 0:01:47]} Kc7 {[%emt 0:01:17]} 41. Rxf7+ {
[%emt 0:30:54]} Kb6 {[%emt 0:30:01]} 42. Rxg7 {[%emt 0:00:00]} Kxb5 {[%emt 0:
00:00]} 43. Rb7+ {[%emt 0:00:00]} Kc6 {[%emt 0:00:00]} 44. Rh7 {[%emt 0:00:00]}
Re4 {[%emt 0:00:00]} 45. Rxh5 {[%emt 0:00:00]} d4 {[%emt 0:00:00]} 46. Kd2 {
[%emt 0:00:30]} Re3 {[%emt 0:00:00]} 47. Rh6+ {[%emt 0:01:17]} Kc5 {[%emt 0:00:
00]} 48. Rh8 {[%emt 0:01:10]} c3+ {[%emt 0:00:00]} 49. Kd1 {[%emt 0:00:07]} Kc4
{[%emt 0:00:00]} 50. Ra8 {[%emt 0:01:36]} Kd3 {[%emt 0:00:00]} 51. Ra2 {
[%emt 0:00:44]} Rxe5 {[%emt 0:00:00]} 52. Rf2 {[%emt 0:00:19]} c2+ {[%emt 0:00:
00]} 0-1

[Event "44th Chess Olympiad Open 2022"]
[Site "Chennai"]
[Date "2022.08.08"]
[Round "10.38"]
[White "Bastidas Rodriguez, Emilio"]
[Black "Al Hosani, Omran"]
[Result "0-1"]
[WhiteElo "2351"]
[BlackElo "2215"]
[Annotator "RC"]
[PlyCount "90"]
[EventDate "2022.??.??"]
[TimeControl "60"]

1. c4 {[%emt 0:00:06]} Nf6 {[%emt 0:00:12]} 2. Nf3 {[%emt 0:01:25]} e6 {
[%emt 0:00:42]} 3. g3 {[%emt 0:02:19]} d5 {[%emt 0:00:22]} 4. Bg2 {[%emt 0:00:
00]} Be7 {[%emt 0:00:14]} 5. O-O {[%emt 0:00:14]} O-O {[%emt 0:00:04]} 6. b3 {
[%emt 0:00:16]} c5 {[%emt 0:00:18]} 7. Bb2 {[%emt 0:00:47]} Nc6 {[%emt 0:00:12]
} 8. e3 {[%emt 0:00:51]} b6 {[%emt 0:02:05]} 9. Qe2 {[%emt 0:11:55]} Bb7 {
[%emt 0:00:20]} 10. d3 {[%emt 0:01:43]} Re8 {[%emt 0:01:31]} 11. Rd1 {[%emt 0:
00:00]} Qc7 {[%emt 0:01:44]} 12. Nc3 {[%emt 0:00:22]} Rad8 {[%emt 0:00:48]} 13.
Rac1 {[%emt 0:02:08]} Qb8 {[%emt 0:01:00]} 14. Ba1 {[%emt 0:00:18]} d4 {
[%emt 0:01:06]} 15. exd4 {[%emt 0:01:12]} cxd4 {[%emt 0:01:12]} 16. Ne4 {
[%emt 0:00:26]} Nxe4 {[%emt 0:03:22]} 17. dxe4 {[%emt 0:02:30]} e5 {[%emt 0:00:
00]} 18. Ne1 {[%emt 0:00:26]} a5 {[%emt 0:00:41]} 19. Rb1 {[%emt 0:02:29]} Ba6
{[%emt 0:00:47]} 20. Bf1 {[%emt 0:00:21]} Bf8 {[%emt 0:02:23]} 21. Bb2 {
[%emt 0:00:13]} Na7 {[%emt 0:04:53]} 22. Qd2 {[%emt 0:15:41]} Bb7 {[%emt 0:00:
00]} 23. Bg2 {[%emt 0:01:06]} Qa8 {[%emt 0:06:28]} 24. Qe2 {[%emt 0:06:55]} a4
{[%emt 0:00:35]} 25. Nd3 {[%emt 0:03:35]} Nc6 {[%emt 0:02:40]} 26. Qe1 {
[%emt 0:02:50]} Qa5 {[%emt 0:08:57]} 27. Qxa5 {[%emt 0:07:32]} bxa5 {[%emt 0:
00:00]} 28. bxa4 {[%emt 0:05:04]} Ba6 {[%emt 0:00:07]} 29. Bf1 {[%emt 0:00:22]}
Rb8 {[%emt 0:00:50]} 30. c5 {[%emt 0:00:31]} Bc4 {[%emt 0:02:01]} 31. Nc1 {
[%emt 0:15:04]} Bxf1 {[%emt 0:04:38]} 32. Kxf1 {[%emt 0:00:09]} Bxc5 {[%emt 0:
00:00]} 33. Nb3 {[%emt 0:00:02]} Bf8 {[%emt 0:03:17]} 34. Ra1 {[%emt 0:08:27]}
Rec8 {[%emt 0:03:57]} 35. Rdc1 {[%emt 0:01:01]} f6 {[%emt 0:09:10]} 36. f4 {
[%emt 0:02:37]} Nb4 {[%emt 0:00:48]} 37. fxe5 {[%emt 0:01:55]} fxe5 {[%emt 0:
00:00]} 38. Ke2 {[%emt 0:02:02]} Rxc1 {[%emt 0:00:18]} 39. Bxc1 {[%emt 0:01:02]
} d3+ {[%emt 0:05:53]} 40. Kd2 {[%emt 0:02:38]} Rc8 {[%emt 0:06:28]} 41. a3 {
[%emt 0:30:28]} Rc2+ {[%emt 0:30:14]} 42. Ke3 {[%emt 0:00:46]} Re2+ {[%emt 0:
00:00]} 43. Kf3 {[%emt 0:00:05]} Nc2 {[%emt 0:00:23]} 44. Rb1 {[%emt 0:00:13]}
Re1 {[%emt 0:04:39]} 45. Rb2 {[%emt 0:00:00]} Rxc1 {[%emt 0:00:00]} 0-1

[Event "44th Chess Olympiad Open 2022"]
[Site "Chennai"]
[Date "2022.08.08"]
[Round "10.38"]
[White "Othman, A. Moussa"]
[Black "Mieles Palau, Daniel"]
[Result "1/2-1/2"]
[WhiteElo "2229"]
[BlackElo "2364"]
[Annotator "RC"]
[PlyCount "73"]
[EventDate "2022.??.??"]
[TimeControl "60"]

1. d4 {[%emt 0:00:03]} d5 {[%emt 0:00:08]} 2. c4 {[%emt 0:00:12]} e6 {[%emt 0:
00:00]} 3. Nf3 {[%emt 0:00:05]} c6 {[%emt 0:00:09]} 4. e3 {[%emt 0:02:32]} f5 {
[%emt 0:00:43]} 5. Bd3 {[%emt 0:00:22]} Nf6 {[%emt 0:00:09]} 6. O-O {[%emt 0:
00:00]} Bd6 {[%emt 0:00:04]} 7. b3 {[%emt 0:00:05]} Qe7 {[%emt 0:00:06]} 8. Bb2
{[%emt 0:00:06]} O-O {[%emt 0:00:10]} 9. Qc1 {[%emt 0:00:02]} Ne4 {[%emt 0:00:
00]} 10. Ba3 {[%emt 0:00:38]} Nd7 {[%emt 0:02:12]} 11. Bxd6 {[%emt 0:04:55]}
Qxd6 {[%emt 0:00:08]} 12. Qa3 {[%emt 0:02:08]} b6 {[%emt 0:01:01]} 13. Qxd6 {
[%emt 0:06:10]} Nxd6 {[%emt 0:04:48]} 14. cxd5 {[%emt 0:04:41]} exd5 {[%emt 0:
00:00]} 15. Nbd2 {[%emt 0:00:46]} Bb7 {[%emt 0:03:27]} 16. Rac1 {[%emt 0:05:34]
} Rfc8 {[%emt 0:02:43]} 17. Rfd1 {[%emt 0:01:41]} Kf7 {[%emt 0:00:06]} 18. Ng5+
{[%emt 0:07:59]} Kf6 {[%emt 0:06:29]} 19. f4 {[%emt 0:00:14]} h6 {[%emt 0:00:
00]} 20. Ngf3 {[%emt 0:00:04]} Ne4 {[%emt 0:00:21]} 21. Ne5 {[%emt 0:06:28]}
Nxe5 {[%emt 0:01:28]} 22. fxe5+ {[%emt 0:00:50]} Ke7 {[%emt 0:03:54]} 23. g4 {
[%emt 0:20:24]} Nxd2 {[%emt 0:08:10]} 24. Rxd2 {[%emt 0:01:12]} fxg4 {[%emt 0:
00:00]} 25. Rg2 {[%emt 0:07:05]} g5 {[%emt 0:04:41]} 26. Rxg4 {[%emt 0:00:08]}
c5 {[%emt 0:00:06]} 27. Rf1 {[%emt 0:08:18]} cxd4 {[%emt 0:01:08]} 28. exd4 {
[%emt 0:00:43]} Rc3 {[%emt 0:05:19]} 29. Rg3 {[%emt 0:06:10]} Rf8 {[%emt 0:00:
00]} 30. Rxf8 {[%emt 0:00:47]} Kxf8 {[%emt 0:00:01]} 31. Kf2 {[%emt 0:05:35]}
Bc8 {[%emt 0:05:39]} 32. Ke2 {[%emt 0:01:06]} Rc1 {[%emt 0:00:16]} 33. Rf3+ {
[%emt 0:00:39]} Kg7 {[%emt 0:00:02]} 34. Rf1 {[%emt 0:00:20]} Rxf1 {[%emt 0:00:
00]} 35. Kxf1 {[%emt 0:00:56]} h5 {[%emt 0:02:25]} 36. Kf2 {[%emt 0:03:30]} Kh6
{[%emt 0:02:06]} 37. Ke3 {[%emt 0:01:29]} 1/2-1/2

[Event "44th Chess Olympiad Open 2022"]
[Site "Chennai"]
[Date "2022.08.08"]
[Round "10.38"]
[White "Sultan, Ibrahim"]
[Black "Noboa Silva, Kevin"]
[Result "1-0"]
[WhiteElo "2108"]
[BlackElo "2304"]
[Annotator "RC"]
[PlyCount "83"]
[EventDate "2022.??.??"]
[TimeControl "60"]

1. d4 {[%emt 0:00:21]} e6 {[%emt 0:00:19]} 2. Nf3 {[%emt 0:00:24]} Nf6 {
[%emt 0:00:17]} 3. c4 {[%emt 0:00:06]} Bb4+ {[%emt 0:00:21]} 4. Nbd2 {[%emt 0:
00:00]} a5 {[%emt 0:00:14]} 5. a3 {[%emt 0:00:06]} Be7 {[%emt 0:00:10]} 6. e4 {
[%emt 0:00:06]} d5 {[%emt 0:00:05]} 7. e5 {[%emt 0:05:47]} Nfd7 {[%emt 0:00:17]
} 8. Bd3 {[%emt 0:01:10]} c5 {[%emt 0:00:58]} 9. Qc2 {[%emt 0:01:48]} Nc6 {
[%emt 0:01:44]} 10. O-O {[%emt 0:00:07]} cxd4 {[%emt 0:01:48]} 11. cxd5 {
[%emt 0:05:40]} exd5 {[%emt 0:03:38]} 12. Re1 {[%emt 0:00:20]} Nc5 {[%emt 0:00:
00]} 13. Nb3 {[%emt 0:02:47]} Ne6 {[%emt 0:09:21]} 14. Bb5 {[%emt 0:02:20]} Bd7
{[%emt 0:04:01]} 15. Bxc6 {[%emt 0:00:07]} bxc6 {[%emt 0:00:28]} 16. Nfxd4 {
[%emt 0:05:50]} Nxd4 {[%emt 0:07:42]} 17. Nxd4 {[%emt 0:00:08]} c5 {[%emt 0:00:
00]} 18. Ne2 {[%emt 0:19:57]} O-O {[%emt 0:03:02]} 19. Nf4 {[%emt 0:01:03]} Bc6
{[%emt 0:05:05]} 20. a4 {[%emt 0:00:20]} Rc8 {[%emt 0:00:34]} 21. Ra3 {[%emt 0:
00:00]} Re8 {[%emt 0:03:50]} 22. Rh3 {[%emt 0:09:28]} h6 {[%emt 0:03:08]} 23.
Ne6 {[%emt 0:15:11]} fxe6 {[%emt 0:10:27]} 24. Rxh6 {[%emt 0:00:06]} gxh6 {
[%emt 0:09:26]} 25. Qg6+ {[%emt 0:00:07]} Kh8 {[%emt 0:00:15]} 26. Qxh6+ {
[%emt 0:00:06]} Kg8 {[%emt 0:00:04]} 27. Qg6+ {[%emt 0:00:07]} Kh8 {[%emt 0:00:
00]} 28. Re3 {[%emt 0:00:30]} Bh4 {[%emt 0:02:08]} 29. Rh3 {[%emt 0:01:23]} Rc7
{[%emt 0:05:36]} 30. Bg5 {[%emt 0:00:13]} Rg7 {[%emt 0:01:27]} 31. Bf6 {
[%emt 0:00:08]} Ree7 {[%emt 0:04:48]} 32. Rxh4+ {[%emt 0:02:31]} Kg8 {[%emt 0:
00:00]} 33. Bxg7 {[%emt 0:00:21]} Rxg7 {[%emt 0:01:48]} 34. Qxe6+ {[%emt 0:00:
00]} Rf7 {[%emt 0:00:27]} 35. Rg4+ {[%emt 0:00:05]} Kf8 {[%emt 0:00:24]} 36.
Qxc6 {[%emt 0:00:09]} c4 {[%emt 0:03:38]} 37. Qc5+ {[%emt 0:02:03]} Re7 {
[%emt 0:01:10]} 38. e6 {[%emt 0:01:39]} Qe8 {[%emt 0:06:53]} 39. Qd6 {[%emt 0:
00:00]} Qh5 {[%emt 0:02:08]} 40. Qf4+ {[%emt 0:00:09]} Qf7 {[%emt 0:00:05]} 41.
Qxf7+ {[%emt 0:30:13]} Rxf7 {[%emt 0:34:52]} 42. exf7 {[%emt 0:00:08]} 1-0

[Event "44th Chess Olympiad Open 2022"]
[Site "Chennai"]
[Date "2022.08.08"]
[Round "10.38"]
[White "Esmeraldas Huachi, Anderson"]
[Black "Abdulrahman Mohammad, Al Taher"]
[Result "1-0"]
[WhiteElo "2071"]
[BlackElo "2029"]
[Annotator "NA RC"]
[PlyCount "97"]
[EventDate "2022.??.??"]
[TimeControl "60"]

1. d4 {[%emt 0:00:02]} d5 {[%emt 0:00:12]} 2. c4 {[%emt 0:01:09]} e6 {[%emt 0:
00:00]} 3. Nc3 {[%emt 0:00:28]} Nf6 {[%emt 0:00:14]} 4. cxd5 {[%emt 0:00:09]}
exd5 {[%emt 0:00:06]} 5. Nf3 {[%emt 0:00:53]} Be7 {[%emt 0:01:05]} 6. Bg5 {
[%emt 0:00:53]} O-O {[%emt 0:01:04]} 7. e3 {[%emt 0:00:13]} h6 {[%emt 0:00:59]}
8. Bh4 {[%emt 0:00:24]} c6 {[%emt 0:00:34]} 9. Bd3 {[%emt 0:00:17]} Re8 {
[%emt 0:01:41]} 10. Qc2 {[%emt 0:05:53]} Ne4 {[%emt 0:01:27]} 11. Bxe7 {
[%emt 0:03:35]} Qxe7 {[%emt 0:00:06]} 12. O-O {[%emt 0:01:48]} Nd7 {[%emt 0:00:
00]} 13. Bxe4 {[%emt 0:02:22]} dxe4 {[%emt 0:04:34]} 14. Nd2 {[%emt 0:00:08]}
Nf6 {[%emt 0:01:50]} 15. Rfd1 {[%emt 0:13:56]} Bg4 {[%emt 0:05:08]} 16. Rdc1 {
[%emt 0:00:14]} Rad8 {[%emt 0:03:52]} 17. b4 {[%emt 0:00:36]} h5 {[%emt 0:00:
00]} 18. b5 {[%emt 0:01:57]} c5 {[%emt 0:06:40]} 19. dxc5 {[%emt 0:01:40]} Qxc5
{[%emt 0:00:23]} 20. h3 {[%emt 0:14:18]} Bf5 {[%emt 0:10:04]} 21. Nb3 {[%emt 0:
00:00]} Qe5 {[%emt 0:06:59]} 22. Nd4 {[%emt 0:00:25]} g5 {[%emt 0:06:51]} 23.
Nce2 {[%emt 0:03:27]} g4 {[%emt 0:10:07]} 24. h4 {[%emt 0:02:03]} Nd5 {[%emt 0:
00:00]} 25. g3 {[%emt 0:01:44]} Nb4 {[%emt 0:05:25]} 26. Qc7 {[%emt 0:00:22]}
Nd3 {[%emt 0:03:46]} 27. Qxe5 {[%emt 0:05:02]} Rxe5 {[%emt 0:00:02]} 28. Rc7 {
[%emt 0:00:59]} Rd7 {[%emt 0:00:47]} 29. Rc3 {[%emt 0:00:07]} Bg6 {[%emt 0:00:
00]} 30. Nf4 {[%emt 0:06:38]} Ree7 {[%emt 0:00:42]} 31. a4 {[%emt 0:00:25]} Kg7
{[%emt 0:03:25]} 32. Raa3 {[%emt 0:01:18]} Ne5 {[%emt 0:00:48]} 33. Nfe2 {
[%emt 0:06:55]} Nf3+ {[%emt 0:01:42]} 34. Kg2 {[%emt 0:00:06]} Rc7 {[%emt 0:00:
00]} 35. Rxc7 {[%emt 0:01:18]} Rxc7 {[%emt 0:00:02]} 36. Rc3 {[%emt 0:00:07]}
Rxc3 {[%emt 0:01:46]} 37. Nxc3 {[%emt 0:00:02]} Kf6 {[%emt 0:00:10]} 38. Nb3 {
[%emt 0:06:13]} b6 {[%emt 0:02:59]} 39. Nd4 {[%emt 0:00:42]} Ne5 {[%emt 0:00:
00]} 40. Nd5+ {[%emt 0:00:57]} Kg7 {[%emt 0:00:26]} 41. Nc6 {[%emt 0:30:21]}
Nxc6 {[%emt 0:06:03]} 42. bxc6 {[%emt 0:00:00]} Kf8 {[%emt 0:00:03]} 43. c7 {
[%emt 0:00:00]} Bf5 {[%emt 0:00:04]} 44. Nf6 {[%emt 0:00:00]} Ke7 {[%emt 0:00:
00]} 45. Nxh5 {[%emt 0:00:00]} Kd7 {[%emt 0:01:46]} 46. Ng7 {[%emt 0:00:00]}
Bh7 {[%emt 0:00:05]} 47. Ne8 {[%emt 0:00:00]} Bg6 {[%emt 0:00:04]} 48. h5 {
[%emt 0:00:00]} Bf5 {[%emt 0:01:34]} 49. c8=Q+ {[%emt 0:00:00]} 1-0

[Event "44th Chess Olympiad Open 2022"]
[Site "Chennai"]
[Date "2022.08.08"]
[Round "10.39"]
[White "Tologontegin, Semetey"]
[Black "Thing, Bibek"]
[Result "1-0"]
[WhiteElo "2378"]
[BlackElo "2260"]
[Annotator "RC"]
[PlyCount "69"]
[EventDate "2022.??.??"]
[TimeControl "60"]

1. g3 {[%emt 0:00:02]} d5 {[%emt 0:00:12]} 2. Bg2 {[%emt 0:00:08]} Nf6 {
[%emt 0:00:09]} 3. d3 {[%emt 0:00:08]} Bf5 {[%emt 0:00:48]} 4. Nd2 {[%emt 0:00:
00]} c6 {[%emt 0:02:53]} 5. e4 {[%emt 0:00:12]} dxe4 {[%emt 0:00:22]} 6. dxe4 {
[%emt 0:00:07]} Bg4 {[%emt 0:01:20]} 7. Ngf3 {[%emt 0:03:09]} e5 {[%emt 0:00:
00]} 8. h3 {[%emt 0:00:09]} Bxf3 {[%emt 0:00:10]} 9. Qxf3 {[%emt 0:00:16]} Nbd7
{[%emt 0:01:22]} 10. O-O {[%emt 0:00:27]} Be7 {[%emt 0:04:21]} 11. a4 {[%emt 0:
00:00]} O-O {[%emt 0:01:51]} 12. Qe2 {[%emt 0:13:40]} Re8 {[%emt 0:05:41]} 13.
Nc4 {[%emt 0:12:50]} Bc5 {[%emt 0:03:30]} 14. Bd2 {[%emt 0:11:54]} a5 {[%emt 0:
00:00]} 15. Rfd1 {[%emt 0:04:18]} Qc7 {[%emt 0:00:27]} 16. Bc3 {[%emt 0:00:27]}
b6 {[%emt 0:18:09]} 17. h4 {[%emt 0:02:40]} Nf8 {[%emt 0:01:13]} 18. Bh3 {
[%emt 0:01:17]} Bb4 {[%emt 0:07:01]} 19. Bxb4 {[%emt 0:04:58]} axb4 {[%emt 0:
00:00]} 20. Qe1 {[%emt 0:00:32]} b5 {[%emt 0:09:05]} 21. Ne3 {[%emt 0:24:46]}
Qa5 {[%emt 0:00:37]} 22. b3 {[%emt 0:03:33]} Rad8 {[%emt 0:04:46]} 23. axb5 {
[%emt 0:01:24]} Qxb5 {[%emt 0:00:13]} 24. Rxd8 {[%emt 0:02:46]} Rxd8 {[%emt 0:
00:00]} 25. Nc4 {[%emt 0:00:00]} Rd4 {[%emt 0:01:50]} 26. Ra5 {[%emt 0:01:20]}
Qb8 {[%emt 0:03:22]} 27. Bg2 {[%emt 0:00:45]} Qd8 {[%emt 0:01:26]} 28. Ra1 {
[%emt 0:00:07]} Qe7 {[%emt 0:01:58]} 29. Bf3 {[%emt 0:00:48]} g6 {[%emt 0:00:
00]} 30. Qe3 {[%emt 0:02:06]} Kg7 {[%emt 0:08:47]} 31. Qg5 {[%emt 0:00:07]}
N8d7 {[%emt 0:00:39]} 32. Ne3 {[%emt 0:00:09]} Qe6 {[%emt 0:04:02]} 33. Nf5+ {
[%emt 0:02:22]} Kg8 {[%emt 0:00:03]} 34. Ra8+ {[%emt 0:00:19]} Nf8 {[%emt 0:00:
00]} 35. Qh6 {[%emt 0:01:12]} 1-0

[Event "44th Chess Olympiad Open 2022"]
[Site "Chennai"]
[Date "2022.08.08"]
[Round "10.39"]
[White "Zhakshylykov, Erzhan"]
[Black "Bhandari, Kshitiz"]
[Result "1-0"]
[WhiteElo "2332"]
[BlackElo "2071"]
[Annotator "RC"]
[PlyCount "51"]
[EventDate "2022.??.??"]
[TimeControl "60"]

1. e4 {[%emt 0:00:07]} c5 {[%emt 0:00:13]} 2. Nf3 {[%emt 0:00:12]} e6 {[%emt 0:
00:00]} 3. d4 {[%emt 0:00:30]} cxd4 {[%emt 0:00:05]} 4. Nxd4 {[%emt 0:00:07]}
a6 {[%emt 0:00:22]} 5. c4 {[%emt 0:02:47]} Nf6 {[%emt 0:01:41]} 6. Nc3 {
[%emt 0:01:49]} d6 {[%emt 0:00:15]} 7. Be2 {[%emt 0:00:54]} Nbd7 {[%emt 0:00:
00]} 8. Be3 {[%emt 0:02:34]} b6 {[%emt 0:02:37]} 9. O-O {[%emt 0:01:53]} Bb7 {
[%emt 0:00:04]} 10. f3 {[%emt 0:00:07]} Be7 {[%emt 0:03:02]} 11. a4 {[%emt 0:
00:00]} O-O {[%emt 0:06:31]} 12. a5 {[%emt 0:08:13]} bxa5 {[%emt 0:00:47]} 13.
Nb3 {[%emt 0:00:22]} Qc7 {[%emt 0:00:49]} 14. Nxa5 {[%emt 0:00:23]} Rfb8 {
[%emt 0:00:21]} 15. Qd2 {[%emt 0:13:15]} Ne5 {[%emt 0:03:29]} 16. Rfc1 {
[%emt 0:04:48]} Bc8 {[%emt 0:09:45]} 17. Na4 {[%emt 0:10:56]} Bd7 {[%emt 0:00:
00]} 18. b4 {[%emt 0:01:23]} Nc6 {[%emt 0:12:30]} 19. Nxc6 {[%emt 0:01:11]}
Bxc6 {[%emt 0:00:06]} 20. b5 {[%emt 0:12:44]} Be8 {[%emt 0:01:52]} 21. Nc3 {
[%emt 0:09:58]} a5 {[%emt 0:09:12]} 22. b6 {[%emt 0:08:26]} Qb7 {[%emt 0:04:21]
} 23. Nb5 {[%emt 0:01:54]} Bxb5 {[%emt 0:09:17]} 24. cxb5 {[%emt 0:00:05]} d5 {
[%emt 0:00:35]} 25. Rc7 {[%emt 0:00:24]} Bb4 {[%emt 0:00:13]} 26. Qd1 {[%emt 0:
00:00]} 1-0

[Event "44th Chess Olympiad Open 2022"]
[Site "Chennai"]
[Date "2022.08.08"]
[Round "10.39"]
[White "Jaiswal, Rupesh"]
[Black "Degenbaev, Aziz"]
[Result "1-0"]
[WhiteElo "2083"]
[BlackElo "2215"]
[Annotator "NA RC"]
[PlyCount "91"]
[EventDate "2022.??.??"]
[TimeControl "60"]

1. e4 {[%emt 0:00:03]} c5 {[%emt 0:00:09]} 2. Nf3 {[%emt 0:00:04]} d6 {[%emt 0:
00:00]} 3. Bb5+ {[%emt 0:00:02]} Nd7 {[%emt 0:00:09]} 4. a4 {[%emt 0:00:05]}
Ngf6 {[%emt 0:00:39]} 5. Nc3 {[%emt 0:00:08]} g6 {[%emt 0:00:20]} 6. a5 {
[%emt 0:00:32]} a6 {[%emt 0:00:22]} 7. Bc4 {[%emt 0:00:15]} h6 {[%emt 0:05:57]}
8. O-O {[%emt 0:07:06]} Bg7 {[%emt 0:00:10]} 9. Re1 {[%emt 0:02:51]} O-O {
[%emt 0:01:44]} 10. d3 {[%emt 0:04:39]} b5 {[%emt 0:03:32]} 11. axb6 {[%emt 0:
00:00]} Bb7 {[%emt 0:02:22]} 12. Nd5 {[%emt 0:06:22]} Nxb6 {[%emt 0:17:59]} 13.
Nxb6 {[%emt 0:05:51]} Qxb6 {[%emt 0:00:04]} 14. Bd2 {[%emt 0:00:14]} e5 {
[%emt 0:15:28]} 15. Qc1 {[%emt 0:12:15]} Kh7 {[%emt 0:00:48]} 16. Ba5 {[%emt 0:
00:00]} Qc6 {[%emt 0:01:19]} 17. b4 {[%emt 0:00:13]} Rae8 {[%emt 0:19:03]} 18.
bxc5 {[%emt 0:01:19]} Qxc5 {[%emt 0:00:23]} 19. Qa3 {[%emt 0:01:41]} Nxe4 {
[%emt 0:10:17]} 20. Rxe4 {[%emt 0:07:07]} Qxa3 {[%emt 0:03:54]} 21. Rxa3 {
[%emt 0:00:04]} Bxe4 {[%emt 0:00:37]} 22. dxe4 {[%emt 0:00:35]} Rc8 {[%emt 0:
00:00]} 23. Bb3 {[%emt 0:02:24]} f5 {[%emt 0:02:08]} 24. Nd2 {[%emt 0:00:37]}
h5 {[%emt 0:03:16]} 25. Ra2 {[%emt 0:04:20]} Bh6 {[%emt 0:02:11]} 26. Nc4 {
[%emt 0:03:25]} Rc6 {[%emt 0:00:28]} 27. Bd2 {[%emt 0:01:27]} Rxc4 {[%emt 0:00:
00]} 28. Bxh6 {[%emt 0:01:02]} Rd4 {[%emt 0:06:30]} 29. c3 {[%emt 0:01:20]}
Rxe4 {[%emt 0:01:06]} 30. f3 {[%emt 0:01:09]} Re1+ {[%emt 0:00:58]} 31. Kf2 {
[%emt 0:00:15]} Kxh6 {[%emt 0:00:18]} 32. Kxe1 {[%emt 0:00:14]} Rb8 {[%emt 0:
00:00]} 33. Bd5 {[%emt 0:02:04]} Rb1+ {[%emt 0:00:24]} 34. Ke2 {[%emt 0:00:16]}
h4 {[%emt 0:00:41]} 35. h3 {[%emt 0:03:27]} Kg5 {[%emt 0:00:27]} 36. Ke3 {
[%emt 0:01:05]} a5 {[%emt 0:00:43]} 37. Rxa5 {[%emt 0:00:48]} Rc1 {[%emt 0:00:
00]} 38. f4+ {[%emt 0:01:46]} exf4+ {[%emt 0:00:20]} 39. Kd2 {[%emt 0:00:12]}
Rb1 {[%emt 0:00:50]} 40. Ra6 {[%emt 0:00:27]} f3 {[%emt 0:00:29]} 41. Bxf3 {
[%emt 0:30:56]} Kf4 {[%emt 0:30:36]} 42. Rxd6 {[%emt 0:03:53]} g5 {[%emt 0:00:
00]} 43. Rg6 {[%emt 0:01:00]} Rf1 {[%emt 0:00:45]} 44. Kd3 {[%emt 0:00:34]} g4
{[%emt 0:00:41]} 45. Bxg4 {[%emt 0:00:08]} fxg4 {[%emt 0:00:25]} 46. Rxg4+ {
[%emt 0:00:11]} 1-0

[Event "44th Chess Olympiad Open 2022"]
[Site "Chennai"]
[Date "2022.08.08"]
[Round "10.39"]
[White "Lama, Milan"]
[Black "Markov, Mikhail"]
[Result "0-1"]
[WhiteElo "2024"]
[BlackElo "2333"]
[Annotator "RC"]
[PlyCount "64"]
[EventDate "2022.??.??"]
[TimeControl "60"]

1. e4 {[%emt 0:00:05]} c5 {[%emt 0:00:07]} 2. c3 {[%emt 0:00:13]} Nf6 {[%emt 0:
00:00]} 3. e5 {[%emt 0:00:09]} Nd5 {[%emt 0:00:04]} 4. d4 {[%emt 0:00:27]} cxd4
{[%emt 0:00:07]} 5. Nf3 {[%emt 0:00:27]} d6 {[%emt 0:00:23]} 6. cxd4 {[%emt 0:
00:00]} Nc6 {[%emt 0:00:05]} 7. exd6 {[%emt 0:01:12]} Qxd6 {[%emt 0:02:33]} 8.
Nc3 {[%emt 0:02:15]} Nxc3 {[%emt 0:04:07]} 9. bxc3 {[%emt 0:02:50]} e6 {
[%emt 0:00:50]} 10. Bd3 {[%emt 0:00:49]} Be7 {[%emt 0:00:07]} 11. O-O {[%emt 0:
00:00]} b6 {[%emt 0:01:01]} 12. Qe2 {[%emt 0:02:57]} Bb7 {[%emt 0:00:12]} 13.
a4 {[%emt 0:05:45]} O-O {[%emt 0:02:11]} 14. Qe4 {[%emt 0:19:54]} g6 {[%emt 0:
00:00]} 15. Bf4 {[%emt 0:02:11]} Qd8 {[%emt 0:01:10]} 16. Bh6 {[%emt 0:03:53]}
Re8 {[%emt 0:00:13]} 17. Bb5 {[%emt 0:06:45]} Rc8 {[%emt 0:00:25]} 18. Qf4 {
[%emt 0:03:31]} Bd6 {[%emt 0:10:06]} 19. Qe3 {[%emt 0:02:13]} a6 {[%emt 0:00:
00]} 20. Bxc6 {[%emt 0:02:19]} Bxc6 {[%emt 0:03:10]} 21. Ne5 {[%emt 0:00:48]}
Bd5 {[%emt 0:04:35]} 22. Ng4 {[%emt 0:08:21]} f6 {[%emt 0:03:54]} 23. Bf4 {
[%emt 0:02:26]} Bf8 {[%emt 0:02:07]} 24. Qd2 {[%emt 0:02:49]} g5 {[%emt 0:00:
00]} 25. Be3 {[%emt 0:07:36]} h5 {[%emt 0:01:54]} 26. Nxf6+ {[%emt 0:01:21]}
Qxf6 {[%emt 0:00:04]} 27. Bxg5 {[%emt 0:00:35]} Qg6 {[%emt 0:01:05]} 28. f4 {
[%emt 0:01:57]} Be7 {[%emt 0:00:32]} 29. Bxe7 {[%emt 0:02:46]} Rxe7 {[%emt 0:
00:00]} 30. Rae1 {[%emt 0:07:07]} Rg7 {[%emt 0:01:03]} 31. Rf2 {[%emt 0:02:30]}
h4 {[%emt 0:00:15]} 32. Re5 {[%emt 0:01:56]} Qb1+ {[%emt 0:01:51]} 0-1